bitfinex-derivatives/quotes_BNBF0:USTF0_20250302
["timestamp","ask_amount","ask_price","bid_price","bid_amount"]
[1740922885035,1.12696505,606.62,605.66,5.83021827]
[1740922885740,1.12696505,606.61,605.66,5.83021827]
[1740922886341,1.12696505,606.6,605.66,5.83021827]
[1740922886941,1.12696505,606.59,605.66,5.83021827]
[1740922887437,1.12696505,606.58,605.66,5.83021827]
[1740922887840,1.59254083,606.65,605.66,5.83021827]
[1740922888037,1.12696505,606.66,605.66,5.83021827]
[1740922888437,1.12696505,606.65,605.66,5.83021827]
[1740922889042,1.12696505,606.64,605.66,5.83021827]
[1740922889743,1.59149474,606.83,605.66,5.83021827]
[1740922889939,1.42237016,606.83,605.66,5.83021827]
[1740922890143,1.12696505,606.82,605.66,5.83021827]
[1740922890337,2.84889909,606.82,605.66,5.83021827]
[1740922890538,2.71845979,606.81,605.66,5.83021827]
[1740922890943,1.12696505,606.8,605.66,5.83021827]
[1740922891339,1.12696505,606.79,605.66,5.83021827]
[1740922891941,1.12696505,606.78,605.66,5.83021827]
[1740922892546,1.12696505,606.77,605.66,5.83021827]
[1740922893247,1.12696505,606.76,605.66,5.83021827]
[1740922893648,1.12696505,606.75,605.66,5.83021827]
[1740922894150,1.12696505,606.74,605.66,5.83021827]
[1740922894542,1.12696505,606.73,605.66,5.83021827]
[1740922894746,1.12696505,606.72,605.66,5.83021827]
[1740922895143,1.12696505,606.71,605.66,5.83021827]
[1740922895541,1.12696505,606.7,605.66,5.83021827]
[1740922895944,1.12696505,606.78,605.66,5.83021827]
[1740922896147,1.12696505,606.77,605.66,5.83021827]
[1740922896544,1.12696505,606.76,605.66,5.83021827]
[1740922896741,4.1399485,606.76,605.66,5.83021827]
[1740922897040,1.12696505,606.75,605.66,5.83021827]
[1740922897248,1.12696505,606.74,605.66,5.83021827]
[1740922897548,1.12696505,606.73,605.66,5.83021827]
[1740922898344,1.12696505,606.72,605.66,5.83021827]
[1740922899049,1.12696505,606.71,605.66,5.83021827]
[1740922899545,2.84905531,606.7,605.66,5.83021827]
[1740922899748,1.58967117,606.69,605.66,5.83021827]
[1740922900143,1.12696505,606.68,605.66,5.83021827]
[1740922900546,1.12696505,606.67,605.66,5.83021827]
[1740922900943,1.12696505,606.66,605.66,5.83021827]
[1740922901551,1.12696505,606.65,605.66,5.83021827]
[1740922901946,1.12696505,606.64,605.66,5.83021827]
[1740922902544,1.72213997,606.7,605.66,5.83021827]
[1740922902952,1.12696505,606.69,605.66,5.83021827]
[1740922903252,1.12696505,606.68,605.66,5.83021827]
[1740922904050,1.12696505,606.67,605.66,5.83021827]
[1740922904447,1.12696505,606.66,605.66,5.83021827]
[1740922905253,1.12696505,606.65,605.66,5.83021827]
[1740922906055,1.12696505,606.68,605.66,5.83021827]
[1740922906449,1.12696505,606.67,605.66,5.83021827]
[1740922907354,1.12696505,606.66,605.66,5.83021827]
[1740922908051,2.71630303,606.81,605.66,5.83021827]
[1740922908658,2.71630303,606.8,605.66,5.83021827]
[1740922908858,1.58945864,606.79,605.66,5.83021827]
[1740922909056,1.12696505,606.78,605.66,5.83021827]
[1740922909960,1.12696505,606.77,605.66,5.83021827]
[1740922910563,1.58987967,606.86,605.66,5.83021827]
[1740922910564,1.12696505,606.76,605.66,5.83021827]
[1740922910961,1.12696505,606.85,605.66,5.83021827]
[1740922911356,1.12696505,606.84,605.66,5.83021827]
[1740922911557,1.12696505,606.83,605.66,5.83021827]
[1740922911952,1.12696505,606.82,605.66,5.83021827]
[1740922912360,1.12696505,606.81,605.8,1.23544932]
[1740922912662,1.12696505,606.8,605.82,0.33013106]
[1740922913057,1.12696505,606.79,605.82,0.33013106]
[1740922915263,1.12696505,606.79,605.87,1.23544932]
[1740922915559,1.12696505,606.79,605.89,0.33009292]
[1740922915857,1.12696505,606.79,605.9,1.3]
[1740922916062,3.01762149,606.98,605.9,1.3]
[1740922916063,1.12696505,606.78,605.92,0.33007657]
[1740922916757,1.12696505,606.77,605.92,0.33007657]
[1740922917557,3.01762149,606.9,605.92,0.33007657]
[1740922917756,1.59350485,606.89,605.92,0.33007657]
[1740922918064,3.01762149,606.94,605.92,0.33007657]
[1740922918263,4.1438048,606.93,605.92,0.33007657]
[1740922918563,3.01762149,606.92,605.92,0.33007657]
[1740922918760,1.59350485,606.91,605.92,0.33007657]
[1740922918963,1.59350485,606.9,605.92,0.33007657]
[1740922919162,3.01762149,606.89,605.92,0.33007657]
[1740922919361,1.59350485,606.88,605.92,0.33007657]
[1740922919558,1.59350485,606.87,605.92,0.33007657]
[1740922919865,2.71968816,606.86,605.92,0.33007657]
[1740922920165,2.71968816,606.85,605.92,0.33007657]
[1740922920365,1.59350485,606.84,605.92,0.33007657]
[1740922920566,2.71968816,606.84,605.92,0.33007657]
[1740922920764,1.59350485,606.83,605.92,0.33007657]
[1740922921060,1.12618331,606.83,605.92,0.33007657]
[1740922921264,1.59350485,606.82,605.92,0.33007657]
[1740922921563,2.71968816,606.81,605.92,0.33007657]
[1740922921764,1.59350485,606.8,605.92,0.33007657]
[1740922922060,0.97733468,606.94,605.92,0.33007657]
[1740922922061,2.71968816,606.79,605.92,0.33007657]
[1740922922265,1.59350485,606.78,605.92,0.33007657]
[1740922922464,1.59350485,606.77,605.92,0.33007657]
[1740922922665,1.59350485,606.76,605.92,0.33007657]
[1740922922861,1.59676996,606.77,605.92,0.33007657]
[1740922923063,0.97733468,606.93,605.92,0.33007657]
[1740922923064,2.72295327,606.76,605.92,0.33007657]
[1740922923269,1.59676996,606.75,605.92,0.33007657]
[1740922923666,1.12618331,606.74,605.92,0.33007657]
[1740922924164,2.72295327,606.73,605.92,0.33007657]
[1740922924367,1.12618331,606.73,605.92,0.33007657]
[1740922924570,1.12618331,606.72,605.92,0.33007657]
[1740922924969,1.12618331,606.71,605.92,0.33007657]
[1740922925763,1.12618331,606.7,605.92,0.33007657]
[1740922925968,1.12618331,606.69,605.92,0.33007657]
[1740922926271,3.02411154,606.83,605.92,0.33007657]
[1740922926470,1.59780749,606.82,605.92,0.33007657]
[1740922926669,1.59780749,606.81,605.92,0.33007657]
[1740922926873,1.59780749,606.8,605.92,0.33007657]
[1740922927069,1.59780749,606.79,605.92,0.33007657]
[1740922927273,1.59780749,606.78,605.92,0.33007657]
[1740922927469,1.59780749,606.79,605.92,0.33007657]
[1740922927670,1.12838697,606.77,605.92,0.33007657]
[1740922928069,1.12838697,606.76,605.92,0.33007657]
[1740922928274,2.72619446,606.76,605.92,0.33007657]
[1740922928473,1.12838697,606.75,605.92,0.33007657]
[1740922929274,1.12838697,606.74,605.92,0.33007657]
[1740922929674,1.12838697,606.73,605.92,0.33007657]
[1740922930279,2.72649779,606.72,605.92,0.33007657]
[1740922930479,1.59811082,606.71,605.92,0.33007657]
[1740922930680,1.59779836,606.7,605.92,0.33007657]
[1740922930878,2.72618533,606.69,605.92,0.33007657]
[1740922931079,1.59779836,606.68,605.92,2.06207657]
[1740922931280,2.72618533,606.67,605.92,2.06207657]
[1740922931475,1.59779836,606.66,605.92,2.06207657]
[1740922931675,1.59796522,606.65,605.92,2.06207657]
[1740922931876,1.59796522,606.64,605.92,2.06207657]
[1740922932074,1.59796522,606.63,605.92,2.06207657]
[1740922932279,1.59796522,606.62,605.92,2.06207657]
[1740922932479,2.72635219,606.61,605.92,2.06207657]
[1740922932679,1.12838697,606.61,605.92,2.06207657]
[1740922933483,1.12838697,606.6,605.92,2.06207657]
[1740922933883,1.12838697,606.6,605.92,3.43307657]
[1740922934083,1.12838697,606.59,605.92,3.43307657]
[1740922934479,1.12838697,606.58,605.92,3.43307657]
[1740922935078,1.12838697,606.57,605.92,3.43307657]
[1740922935483,1.12838697,606.56,605.92,3.43307657]
[1740922936384,1.12838697,606.55,605.92,3.43307657]
[1740922936885,1.12838697,606.54,605.92,3.43307657]
[1740922937281,1.12838697,606.53,605.92,3.43307657]
[1740922937781,1.12838697,606.52,605.92,3.43307657]
[1740922938388,1.12838697,606.51,605.92,3.43307657]
[1740922939290,1.12838697,606.5,605.92,5.01307657]
[1740922939887,2.72601844,606.49,605.92,5.01307657]
[1740922940089,1.59763147,606.48,605.92,5.01307657]
[1740922940286,1.12838697,606.47,605.92,5.01307657]
[1740922940894,1.12838697,606.46,605.92,5.01307657]
[1740922941589,3.02498095,606.54,605.92,5.01307657]
[1740922941590,1.12838697,606.45,605.92,5.01307657]
[1740922941995,1.12838697,606.44,605.92,5.01307657]
[1740922942494,1.59700248,606.5,605.92,5.01307657]
[1740922942495,1.12838697,606.43,605.92,5.01307657]
[1740922942891,1.12838697,606.42,605.92,5.01307657]
[1740922943496,3.02411987,606.62,605.92,5.01307657]
[1740922943797,3.02411987,606.61,605.92,5.01307657]
[1740922943997,3.02411987,606.6,605.92,5.01307657]
[1740922944194,3.02411987,606.59,605.92,5.01307657]
[1740922944395,3.02411987,606.58,605.92,5.01307657]
[1740922944595,0.7467392,607.32,605.92,5.01307657]
[1740922944596,4.15184909,606.57,605.92,5.01307657]
[1740922944893,3.02411987,606.56,605.92,5.01307657]
[1740922945194,3.02411987,606.56,605.92,5.57107657]
[1740922945195,1.59688888,606.56,605.92,5.57107657]
[1740922945399,1.12772922,606.55,605.92,5.57107657]
[1740922945796,1.12772922,606.54,605.92,5.57107657]
[1740922946194,1.12772922,606.53,605.92,5.57107657]
[1740922946593,1.12772922,606.52,605.92,5.57107657]
[1740922947298,1.12772922,606.51,605.92,5.57107657]
[1740922947694,3.02429729,606.67,605.92,5.57107657]
[1740922947900,1.5970663,606.66,605.92,5.57107657]
[1740922948099,1.5970663,606.65,605.92,5.57107657]
[1740922948298,1.5970663,606.64,605.92,5.57107657]
[1740922948498,1.72195534,606.76,605.92,5.57107657]
[1740922948499,1.5970663,606.63,605.92,5.57107657]
[1740922948694,1.12794232,606.62,605.92,5.57107657]
[1740922949094,1.12794232,606.61,605.92,5.57107657]
[1740922949593,1.72195534,606.76,605.92,5.57107657]
[1740922949594,1.12794232,606.6,605.92,5.57107657]
[1740922950096,1.12794232,606.59,605.92,5.57107657]
[1740922950601,1.12794232,606.58,605.92,5.57107657]
[1740922951198,1.12794232,606.57,605.92,5.57107657]
[1740922951599,1.12794232,606.56,605.92,5.57107657]
[1740922952101,1.12794232,606.55,605.92,5.57107657]
[1740922952603,1.72190564,606.76,605.92,5.57107657]
[1740922952604,1.12794232,606.54,605.92,5.57107657]
[1740922953103,1.12794232,606.53,605.92,5.57107657]
[1740922953499,1.12794232,606.52,605.92,5.57107657]
[1740922953900,1.12794232,606.51,605.92,5.57107657]
[1740922954604,3.02440644,606.63,605.92,5.57107657]
[1740922954803,1.59701815,606.62,605.92,5.57107657]
[1740922955102,1.42738829,606.75,605.92,5.57107657]
[1740922955103,2.72489896,606.61,605.92,5.57107657]
[1740922955303,1.59701815,606.6,605.92,5.57107657]
[1740922955602,1.12788081,606.59,605.92,5.57107657]
[1740922956003,1.12788081,606.58,605.92,5.57107657]
[1740922956799,1.12788081,606.57,605.92,5.57107657]
[1740922957202,1.12788081,606.56,605.92,5.57107657]
[1740922957601,1.12788081,606.55,605.92,5.57107657]
[1740922958102,1.12788081,606.54,605.92,5.57107657]
[1740922958702,1.12788081,606.53,605.92,5.57107657]
[1740922959099,1.12788081,606.52,605.92,5.57107657]
[1740922959904,3.02442314,606.68,605.92,5.57107657]
[1740922960102,3.02442314,606.67,605.92,5.57107657]
[1740922960305,1.59708721,606.66,605.92,5.57107657]
[1740922960501,1.59708721,606.65,605.92,5.57107657]
[1740922960705,1.59708721,606.64,605.92,5.57107657]
[1740922961001,2.72509251,606.63,605.92,5.57107657]
[1740922961200,1.59708721,606.62,605.92,5.57107657]
[1740922961404,1.59708721,606.61,605.92,5.57107657]
[1740922961705,1.59708721,606.6,605.92,5.57107657]
[1740922961905,1.59708721,606.59,605.92,5.57107657]
[1740922962205,2.72509251,606.6,605.92,5.57107657]
[1740922962400,1.59708721,606.59,605.92,5.57107657]
[1740922962600,1.1280053,606.58,605.92,5.57107657]
[1740922963206,1.1280053,606.57,605.92,5.57107657]
[1740922964109,1.1280053,606.56,605.92,5.57107657]
[1740922964408,1.1280053,606.55,605.92,5.57107657]
[1740922965007,1.1280053,606.54,605.92,5.57107657]
[1740922965403,1.1280053,606.53,605.92,5.57107657]
[1740922966006,1.1280053,606.52,605.92,5.57107657]
[1740922966609,1.1280053,606.51,605.92,5.57107657]
[1740922967008,3.02479866,606.71,605.92,5.57107657]
[1740922967009,3.02479866,606.7,605.92,5.57107657]
[1740922967207,3.02479866,606.69,605.92,5.57107657]
[1740922967408,3.02479866,606.68,605.92,5.57107657]
[1740922967710,4.15270431,606.67,605.92,5.57107657]
[1740922967911,3.02479866,606.66,605.92,5.57107657]
[1740922968111,3.02479866,606.65,605.92,5.57107657]
[1740922968306,3.02479866,606.64,605.92,5.57107657]
[1740922968508,3.02479866,606.63,605.92,5.57107657]
[1740922968705,3.02479866,606.62,605.92,5.57107657]
[1740922968904,4.15270431,606.61,605.92,5.57107657]
[1740922969108,3.02479866,606.6,605.92,5.57107657]
[1740922969405,4.15270431,606.59,605.92,5.57107657]
[1740922969612,3.02479866,606.58,605.92,5.57107657]
[1740922969909,1.59700344,606.57,605.92,5.57107657]
[1740922970310,1.12790565,606.58,605.92,5.57107657]
[1740922970512,1.12790565,606.56,605.92,5.57107657]
[1740922971112,1.12790565,606.55,605.92,5.57107657]
[1740922971710,1.12790565,606.54,605.92,5.57107657]
[1740922972312,1.12790565,606.53,605.92,5.57107657]
[1740922972908,1.12790565,606.52,605.92,5.57107657]
[1740922973815,1.12790565,606.51,605.92,5.57107657]
[1740922974115,1.12790565,606.5,605.92,5.57107657]
[1740922975014,1.12790565,606.49,605.92,5.57107657]
[1740922975419,1.12790565,606.48,605.92,5.57107657]
[1740922978918,1.12790565,606.47,605.92,5.57107657]
[1740922979621,1.12790565,606.46,605.92,5.57107657]
[1740922980018,1.12790565,606.45,605.92,5.57107657]
[1740922980818,1.72213997,606.65,605.92,5.57107657]
[1740922980819,1.12790565,606.44,605.92,5.57107657]
[1740922981219,1.12790565,606.43,605.92,5.57107657]
[1740922982026,3.02545565,606.55,605.92,5.57107657]
[1740922982225,3.02545565,606.54,605.92,5.57107657]
[1740922982522,4.15387706,606.53,605.92,5.57107657]
[1740922982725,3.02545565,606.52,605.92,5.57107657]
[1740922982927,2.72600615,606.51,605.92,5.57107657]
[1740922983120,1.12842141,606.51,605.92,5.57107657]
[1740922983519,1.12842141,606.5,605.92,5.57107657]
[1740922983921,1.12842141,606.49,605.92,5.57107657]
[1740922984526,1.12842141,606.48,605.92,5.57107657]
[1740922985127,1.12842141,606.47,605.92,5.57107657]
[1740922985622,1.12842141,606.46,605.92,5.57107657]
[1740922986021,1.12842141,606.45,605.92,5.57107657]
[1740922986223,1.12842141,606.44,605.92,5.57107657]
[1740922986625,1.12842141,606.43,605.92,5.57107657]
[1740922987025,1.72216128,606.65,605.92,5.57107657]
[1740922987026,1.12842141,606.42,605.92,5.57107657]
[1740922987529,1.12842141,606.41,605.92,5.57107657]
[1740922988229,2.70164862,606.65,605.92,5.57107657]
[1740922988230,1.12842141,606.4,605.92,5.57107657]
[1740922988428,1.12842141,606.39,605.92,5.57107657]
[1740922988929,3.02858557,606.55,605.92,5.57107657]
[1740922989130,3.02858557,606.54,605.92,5.57107657]
[1740922989326,4.15840381,606.53,605.92,5.57107657]
[1740922989526,3.02858557,606.52,605.92,5.57107657]
[1740922989729,3.02991765,606.51,605.92,5.57107657]
[1740922989930,3.02991765,606.5,605.92,5.57107657]
[1740922990126,3.02991765,606.49,605.92,5.57107657]
[1740922990325,3.02991765,606.48,605.92,5.57107657]
[1740922990526,3.02991765,606.47,605.92,5.57107657]
[1740922990729,1.12981824,606.48,605.92,5.57107657]
[1740922990730,3.02991765,606.46,605.92,5.57107657]
[1740922990933,3.02991765,606.45,605.92,5.57107657]
[1740922991131,1.60057213,606.44,605.92,5.57107657]
[1740922991331,2.73046835,606.43,605.92,5.57107657]
[1740922991533,1.12981824,606.43,605.92,5.57107657]
[1740922992033,1.12981824,606.42,605.92,5.57107657]
[1740922992533,1.12981824,606.41,605.92,5.57107657]
[1740922993033,1.12981824,606.4,605.92,5.57107657]
[1740922993634,1.12981824,606.39,605.92,5.57107657]
[1740922994139,1.12981824,606.38,605.92,5.57107657]
[1740922994636,1.12981824,606.37,605.92,5.57107657]
[1740922995137,1.12981824,606.36,605.92,5.57107657]
[1740922995536,1.12981824,606.35,605.92,5.57107657]
[1740922996240,1.12981824,606.34,605.92,5.57107657]
[1740922996639,3.03131714,606.48,605.92,5.57107657]
[1740922996837,3.03131714,606.47,605.92,5.57107657]
[1740922997041,4.16188314,606.46,605.92,5.57107657]
[1740922997340,4.16188314,606.45,605.92,5.57107657]
[1740922997541,1.60087902,606.44,605.92,5.57107657]
[1740922997737,1.60087902,606.43,605.92,5.57107657]
[1740922997934,1.130566,606.43,605.92,5.57107657]
[1740922998139,2.73139946,606.42,605.92,5.57107657]
[1740922998335,1.130566,606.42,605.92,5.57107657]
[1740922998943,1.130566,606.41,605.92,5.57107657]
[1740922999242,1.130566,606.4,605.92,5.57107657]
[1740922999635,1.130566,606.39,605.92,5.57107657]
[1740923000035,1.130566,606.38,605.92,5.57107657]
[1740923000239,1.130566,606.37,605.92,5.57107657]
[1740923000643,1.130566,606.36,605.92,5.57107657]
[1740923000941,1.130566,606.35,605.92,5.57107657]
[1740923001642,3.03165275,606.55,605.92,5.57107657]
[1740923001835,3.03165275,606.54,605.92,5.57107657]
[1740923002039,3.03165275,606.53,605.92,5.57107657]
[1740923002236,3.03165275,606.52,605.92,5.57107657]
[1740923002440,3.03165275,606.51,605.92,5.57107657]
[1740923002737,3.03165275,606.5,605.92,5.57107657]
[1740923002937,3.03184845,606.49,605.92,5.57107657]
[1740923003142,1.60087303,606.48,605.92,5.57107657]
[1740923003342,1.60087303,606.47,605.92,5.57107657]
[1740923003542,1.60087303,606.46,605.92,5.57107657]
[1740923003738,1.60087303,606.45,605.92,5.57107657]
[1740923003939,1.13067296,606.47,605.92,5.57107657]
[1740923004138,1.13067296,606.44,605.92,5.57107657]
[1740923004644,1.13067296,606.43,605.92,5.57107657]
[1740923004944,1.13067296,606.42,605.92,5.57107657]
[1740923005447,1.13067296,606.41,605.92,5.57107657]
[1740923005845,1.13067296,606.4,605.92,5.57107657]
[1740923006147,1.13067296,606.39,605.92,5.57107657]
[1740923006742,1.13067296,606.38,605.92,5.57107657]
[1740923007448,3.03231454,606.58,605.92,5.57107657]
[1740923007749,3.03231454,606.57,605.92,5.57107657]
[1740923007949,3.03231454,606.56,605.92,5.57107657]
[1740923008251,4.16313856,606.55,605.92,5.57107657]
[1740923008447,3.03231454,606.54,605.92,5.57107657]
[1740923008648,3.03231454,606.53,605.92,5.57107657]
[1740923008848,3.03231454,606.52,605.92,5.57107657]
[1740923009149,3.03231454,606.51,605.92,5.57107657]
[1740923009450,3.03231982,606.5,605.92,5.57107657]
[1740923009650,2.73203719,606.49,605.92,5.57107657]
[1740923009850,1.60121317,606.48,605.92,5.57107657]
[1740923010150,1.60121317,606.47,605.92,5.57107657]
[1740923010348,1.60121317,606.46,605.92,5.57107657]
[1740923010552,1.60121317,606.45,605.92,5.57107657]
[1740923010753,1.13082402,606.45,605.92,5.57107657]
[1740923011354,1.13082402,606.44,605.92,5.57107657]
[1740923011554,1.60177139,606.43,605.92,5.57107657]
[1740923011754,1.13082402,606.44,605.92,5.57107657]
[1740923012255,1.13082402,606.43,605.92,5.57107657]
[1740923012554,1.13082402,606.42,605.92,5.57107657]
[1740923013151,1.13082402,606.41,605.92,5.57107657]
[1740923013756,1.13082402,606.4,605.92,5.57107657]
[1740923014354,1.13082402,606.39,605.92,5.57107657]
[1740923015057,1.13082402,606.38,605.92,5.57107657]
[1740923015449,1.13082402,606.37,605.92,5.57107657]
[1740923015650,1.13082402,606.36,605.92,5.57107657]
[1740923016252,1.13082402,606.35,605.92,5.57107657]
[1740923016751,1.43138599,606.54,605.92,5.57107657]
[1740923016950,4.16399087,606.53,605.92,5.57107657]
[1740923017151,3.03293212,606.52,605.92,5.57107657]
[1740923017354,3.03293212,606.51,605.92,5.57107657]
[1740923017656,4.16399087,606.5,605.92,5.57107657]
[1740923017857,3.03293212,606.49,605.92,5.57107657]
[1740923018158,4.16399087,606.48,605.92,5.57107657]
[1740923018353,3.03293212,606.47,605.92,5.57107657]
[1740923018557,3.03293212,606.46,605.92,5.57107657]
[1740923018753,4.16399087,606.45,605.92,5.57107657]
[1740923018955,3.03293212,606.44,605.92,5.57107657]
[1740923019261,3.03318772,606.43,605.92,5.57107657]
[1740923019462,1.60166871,606.42,605.92,5.57107657]
[1740923019661,1.13105875,606.42,605.92,5.57107657]
[1740923020063,1.13105875,606.41,605.92,5.57107657]
[1740923020461,1.13105875,606.4,605.92,5.57107657]
[1740923020962,1.13105875,606.39,605.92,5.57107657]
[1740923021562,0.98097842,606.62,605.92,5.57107657]
[1740923021563,1.13105875,606.38,605.92,5.57107657]
[1740923021965,1.13105875,606.37,605.92,5.57107657]
[1740923022360,1.13105875,606.36,605.92,5.57107657]
[1740923022761,1.13105875,606.35,605.92,5.57107657]
[1740923023467,1.43205514,606.54,605.92,5.57107657]
[1740923023667,3.03438551,606.53,605.92,5.57107657]
[1740923023866,3.03438551,606.52,605.92,5.57107657]
[1740923024167,3.03438753,606.51,605.92,5.57107657]
[1740923024468,3.03438753,606.5,605.92,5.57107657]
[1740923024660,3.03438753,606.49,605.92,5.57107657]
[1740923024863,3.03438753,606.48,605.92,5.57107657]
[1740923025059,3.03438753,606.47,605.92,5.57107657]
[1740923025259,3.03447796,606.46,605.92,5.57107657]
[1740923025458,3.03447796,606.45,605.92,5.57107657]
[1740923025663,1.60242282,606.44,605.92,5.57107657]
[1740923025871,1.60242282,606.43,605.92,5.57107657]
[1740923026064,1.72204765,606.69,605.92,5.57107657]
[1740923026065,2.73402899,606.42,605.92,5.57107657]
[1740923026366,1.13160617,606.42,605.92,5.57107657]
[1740923026567,1.13160617,606.41,605.92,5.57107657]
[1740923026961,2.73453152,606.4,605.92,5.57107657]
[1740923027162,1.13160617,606.4,605.92,5.57107657]
[1740923027368,1.13160617,606.39,605.92,5.57107657]
[1740923027768,1.13160617,606.38,605.92,5.57107657]
[1740923028368,1.13160617,606.37,605.92,5.57107657]
[1740923028764,1.13160617,606.36,605.92,5.57107657]
[1740923029470,1.13160617,606.35,605.92,5.57107657]
[1740923029861,1.13160617,606.34,605.92,5.57107657]
[1740923030266,1.13160617,606.33,605.92,5.57107657]
[1740923030762,1.43251194,606.58,605.92,5.57107657]
[1740923030962,3.035349,606.57,605.92,5.57107657]
[1740923031270,4.16732936,606.56,605.92,5.57107657]
[1740923031469,3.035349,606.55,605.92,5.57107657]
[1740923031668,3.035349,606.54,605.92,5.57107657]
[1740923031870,3.035349,606.53,605.92,5.57107657]
[1740923032071,3.035349,606.52,605.92,5.57107657]
[1740923032266,3.035349,606.51,605.92,5.57107657]
[1740923032472,3.035349,606.5,605.92,5.57107657]
[1740923032672,4.16732936,606.49,605.92,5.57107657]
[1740923032874,3.035349,606.48,605.92,5.57107657]
[1740923033068,3.03531999,606.47,605.92,5.57107657]
[1740923033274,4.16730035,606.46,605.92,5.57107657]
[1740923033474,3.03531999,606.45,605.92,5.57107657]
[1740923033666,3.03531999,606.44,605.92,5.57107657]
[1740923033869,3.03531999,606.43,605.92,5.57107657]
[1740923034071,1.60279561,606.42,605.92,5.57107657]
[1740923034272,1.60279561,606.41,605.92,5.57107657]
[1740923034474,1.60279561,606.4,605.92,5.57107657]
[1740923034674,1.60279561,606.39,605.92,5.57107657]
[1740923034878,1.13198036,606.39,605.92,5.57107657]
[1740923035575,1.13198036,606.38,605.92,5.57107657]
[1740923036177,1.13198036,606.37,605.92,5.57107657]
[1740923036473,1.13198036,606.36,605.92,5.57107657]
[1740923036878,0.98167241,606.6,605.92,5.57107657]
[1740923036879,1.13198036,606.35,605.92,5.57107657]
[1740923037475,1.43264681,606.57,605.92,5.57107657]
[1740923037674,3.03562495,606.56,605.92,5.57107657]
[1740923037877,3.03562495,606.55,605.92,5.57107657]
[1740923038080,3.03562495,606.54,605.92,5.57107657]
[1740923038279,3.03562495,606.53,605.92,5.57107657]
[1740923038480,1.43264681,606.52,605.92,5.57107657]
[1740923038879,3.03561372,606.51,605.92,5.57107657]
[1740923039078,1.60296691,606.51,605.92,5.57107657]
[1740923039676,3.0355912,606.5,605.92,5.57107657]
[1740923039875,3.0355912,606.49,605.92,5.57107657]
[1740923040076,4.16767649,606.48,605.92,5.57107657]
[1740923040280,3.03543357,606.47,605.92,5.57107657]
[1740923040481,3.03543357,606.46,605.92,5.57107657]
[1740923040680,3.03543357,606.45,605.92,5.57107657]
[1740923040877,3.03543357,606.44,605.92,5.57107657]
[1740923041083,3.03543357,606.43,605.92,5.57107657]
[1740923041281,3.03543357,606.42,605.92,5.57107657]
[1740923041483,4.16751886,606.41,605.92,5.57107657]
[1740923041677,3.03543357,606.4,605.92,5.57107657]
[1740923041881,3.03543357,606.39,605.92,5.57107657]
[1740923042077,3.03543357,606.38,605.92,5.57107657]
[1740923042279,4.16751886,606.37,605.92,5.57107657]
[1740923042484,3.03543357,606.36,605.92,5.57107657]
[1740923042781,1.60280928,606.35,605.92,5.57107657]
[1740923042983,1.60280928,606.34,605.92,5.57107657]
[1740923043182,1.60280928,606.33,605.92,5.57107657]
[1740923043385,1.60280928,606.32,605.92,5.57107657]
[1740923043583,1.13208529,606.32,605.92,5.57107657]
[1740923043983,1.13208529,606.31,605.92,5.57107657]
[1740923044583,1.13208529,606.3,605.92,5.57107657]
[1740923045084,1.13208529,606.3,605.92,0.33007657]
[1740923045284,1.13208529,606.29,605.92,0.33007657]
[1740923046083,1.13208529,606.28,605.92,0.33007657]
[1740923046483,1.13208529,606.27,605.92,0.33007657]
[1740923047387,1.43166634,606.44,605.92,0.33007657]
[1740923047582,3.03296009,606.43,605.92,0.33007657]
[1740923047783,1.72264436,606.57,605.92,0.33007657]
[1740923047784,3.03296009,606.42,605.92,0.33007657]
[1740923047985,3.03296009,606.41,605.92,0.33007657]
[1740923048181,3.03296009,606.4,605.92,5.79707657]
[1740923048386,4.16388559,606.39,605.92,5.79707657]
[1740923048586,3.03296009,606.38,605.92,5.79707657]
[1740923048786,1.60129375,606.37,605.92,5.79707657]
[1740923048983,1.60129375,606.36,605.92,5.79707657]
[1740923049186,1.60129375,606.35,605.92,5.79707657]
[1740923049388,1.60129375,606.34,605.92,5.79707657]
[1740923049586,1.60129375,606.33,605.92,5.79707657]
[1740923049888,1.1309255,606.32,605.92,5.79707657]
[1740923050387,1.1309255,606.31,605.92,5.79707657]
[1740923051186,1.1309255,606.3,605.92,5.79707657]
[1740923051788,1.1309255,606.29,605.92,5.79707657]
[1740923052584,1.72244541,606.5,605.92,5.79707657]
[1740923052885,3.03205734,606.49,605.92,5.79707657]
[1740923053190,4.16281657,606.48,605.92,5.79707657]
[1740923053386,3.03205734,606.47,605.92,5.79707657]
[1740923053586,3.03205734,606.46,605.92,5.79707657]
[1740923053786,3.03205734,606.45,605.92,5.79707657]
[1740923053987,4.16281657,606.44,605.92,5.79707657]
[1740923054290,3.03205734,606.43,605.92,5.79707657]
[1740923054493,3.03205734,606.42,605.92,5.79707657]
[1740923054683,3.03205734,606.41,605.92,5.79707657]
[1740923054887,3.03205734,606.4,605.92,5.79707657]
[1740923055084,4.16281657,606.39,605.92,5.79707657]
[1740923055291,1.6010505,606.38,605.92,5.79707657]
[1740923055494,1.6010505,606.37,605.92,5.79707657]
[1740923055695,1.6010505,606.36,605.92,5.79707657]
[1740923055889,1.13075923,606.36,605.92,5.79707657]
[1740923056086,1.13075923,606.35,605.92,5.79707657]
[1740923056887,1.13075923,606.34,605.92,5.79707657]